[Event "3rd FIDE WCCC Blitz G10 2019"]
[Site "Minsk"]
[Date "2019.08.18"]
[Round "1.1"]
[White "Basova, Polina"]
[Black "Orlova, Olga"]
[Result "1-0"]
[ECO "C45"]
[WhiteElo "1610"]
[BlackElo "1221"]
[Annotator "NA"]
[PlyCount "47"]
[EventDate "2019.08.18"]
[EventType "swiss"]
[EventCountry "BLR"]
[SourceTitle "playchess.com"]
[Source "ChessBase"]
[SourceQuality "1"]
[TimeControl "300+2"]

1. e4 {[%emt 0:00:00]} e5 {[%emt 0:00:00]} 2. Nf3 {[%emt 0:00:02]} Nc6 {[%emt 0:00:02]} 3. d4 {[%emt 0:00:01]} exd4 {[%emt 0:00:03]} 4. Nxd4 {[%emt 0:00:04]} Nf6 {[%emt 0:00:04]} 5. Nxc6 {[%emt 0:00:04]} bxc6 {[%emt 0:00:04]} 6. e5 {[%emt 0:00:03]} Nd5 {[%emt 0:00:06]} 7. c4 {[%emt 0:00:06]} Bb4+ {[%emt 0:00:22]} 8. Bd2 {[%emt 0:00:50]} Bxd2+ {[%emt 0:00:16]} 9. Nxd2 {[%emt 0:00:15]} Nb6 {[%emt 0:00:13]} 10. Bd3 {[%emt 0:00:20]} Bb7 {[%emt 0:00:58]} 11. Qg4 {[%emt 0:00:28]} O-O {[%emt 0:00:51]} 12. Ne4 {[%emt 0:00:38]} Re8 {[%emt 0:00:32]} 13. Qg3 {[%emt 0:00:44]} Ba6 {[%emt 0:00:24]} 14. O-O {[%emt 0:00:08]} Bxc4 {[%emt 0:00:05]} 15. Nf6+ {[%emt 0:00:12]} Kh8 {[%emt 0:00:27]} 16. Nxe8 {[%emt 0:00:16]} Qxe8 {[%emt 0:00:03]} 17. Bxc4 {[%emt 0:00:06]} Nxc4 {[%emt 0:00:02]} 18. Qc3 {[%emt 0:00:10]} Qe6 {[%emt 0:00:45]} 19. b3 {[%emt 0:00:06]} Nb6 {[%emt 0:00:06]} 20. Rfd1 {[%emt 0:00:07]} Nd5 {[%emt 0:00:03]} 21. Qb2 {[%emt 0:00:02]} Re8 {[%emt 0:00:03]} 22. Re1 {[%emt 0:00:01]} Nf4 {[%emt 0:00:04]} 23. Re4 {[%emt 0:00:07]} Nd3 {[%emt 0:00:05]} 24. Qd4 {[%emt 0:00:04]} 1-0

[Event "3rd FIDE WCCC Blitz G10 2019"]
[Site "Minsk"]
[Date "2019.08.18"]
[Round "1.2"]
[White "Loviagina, Dariana"]
[Black "Dzhalalian, Nelli"]
[Result "1-0"]
[ECO "A05"]
[WhiteElo "1421"]
[BlackElo "1727"]
[Annotator "NA"]
[PlyCount "64"]
[EventDate "2019.08.18"]
[EventType "swiss"]
[EventCountry "BLR"]
[SourceTitle "playchess.com"]
[Source "ChessBase"]
[SourceQuality "1"]
[TimeControl "300+2"]

1. Nf3 {[%emt 0:00:00]} Nf6 {[%emt 0:00:00]} 2. b3 {[%emt 0:00:01]} b6 {[%emt 0:00:01]} 3. Bb2 {[%emt 0:00:01]} Bb7 {[%emt 0:00:02]} 4. g3 {[%emt 0:00:01]} g6 {[%emt 0:00:04]} 5. Bg2 {[%emt 0:00:01]} Bg7 {[%emt 0:00:01]} 6. O-O {[%emt 0:00:02]} O-O {[%emt 0:00:02]} 7. d3 {[%emt 0:00:01]} d6 {[%emt 0:00:01]} 8. Nbd2 {[%emt 0:00:01]} Nbd7 {[%emt 0:00:02]} 9. e4 {[%emt 0:00:01]} e5 {[%emt 0:00:02]} 10. Qe2 {[%emt 0:00:07]} Qe7 {[%emt 0:00:03]} 11. Kh1 {[%emt 0:00:11]} Rfe8 {[%emt 0:00:18]} 12. Rae1 {[%emt 0:00:02]} Ba6 {[%emt 0:00:05]} 13. Ng1 {[%emt 0:00:11]} Nf8 {[%emt 0:00:11]} 14. Nh3 {[%emt 0:00:17]} h6 {[%emt 0:00:11]} 15. f4 {[%emt 0:00:04]} N8h7 {[%emt 0:00:33]} 16. fxe5 {[%emt 0:00:34]} dxe5 {[%emt 0:00:05]} 17. Nf3 {[%emt 0:00:03]} Bc8 {[%emt 0:00:24]} 18. Bxe5 {[%emt 0:00:07]} Ng4 {[%emt 0:00:10]} 19. Bxg7 {[%emt 0:00:05]} Kxg7 {[%emt 0:00:03]} 20. Nf4 {[%emt 0:00:14]} Kg8 {[%emt 0:00:11]} 21. Nd5 {[%emt 0:00:14]} Qd7 {[%emt 0:00:21]} 22. Qd2 {[%emt 0:00:10]} c6 {[%emt 0:00:22]} 23. Ne3 {[%emt 0:00:05]} Ngf6 {[%emt 0:00:18]} 24. Nc4 g5 {[%emt 0:00:29]} 25. Nfe5 {[%emt 0:00:57]} Qc7 {[%emt 0:00:16]} 26. Nf3 {[%emt 0:00:17]} Bg4 {[%emt 0:00:21]} 27. e5 {[%emt 0:00:10]} Bxf3 {[%emt 0:00:14]} 28. Rxf3 {[%emt 0:00:09]} Nd7 {[%emt 0:00:20]} 29. d4 {[%emt 0:00:11]} b5 {[%emt 0:00:33]} 30. Nd6 {[%emt 0:00:02]} Re7 {[%emt 0:00:07]} 31. Ref1 {[%emt 0:00:09]} Rf8 {[%emt 0:00:09]} 32. Qf2 {[%emt 0:00:17]} Nb8 1-0

[Event "3rd FIDE WCCC Blitz G10 2019"]
[Site "Minsk"]
[Date "2019.08.18"]
[Round "1.3"]
[White "Efimova, Darya"]
[Black "Shenker, Angelina"]
[Result "0-1"]
[ECO "B13"]
[WhiteElo "1385"]
[BlackElo "1403"]
[Annotator "NA"]
[PlyCount "64"]
[EventDate "2019.08.18"]
[EventType "swiss"]
[EventCountry "BLR"]
[SourceTitle "playchess.com"]
[Source "ChessBase"]
[SourceQuality "1"]
[TimeControl "300+2"]

1. e4 {[%emt 0:00:00]} c6 {[%emt 0:00:00]} 2. d4 {[%emt 0:00:01]} d5 {[%emt 0:00:00]} 3. exd5 {[%emt 0:00:01]} cxd5 {[%emt 0:00:02]} 4. c4 {[%emt 0:00:01]} Nf6 {[%emt 0:00:04]} 5. Nc3 {[%emt 0:00:00]} Nc6 {[%emt 0:00:25]} 6. Nf3 {[%emt 0:00:02]} Bg4 {[%emt 0:00:17]} 7. Bg5 {[%emt 0:00:01]} Bxf3 {[%emt 0:00:22]} 8. gxf3 {[%emt 0:00:42]} e6 {[%emt 0:00:21]} 9. a3 {[%emt 0:00:17]} Be7 {[%emt 0:00:04]} 10. Rg1 {[%emt 0:00:19]} dxc4 {[%emt 0:00:15]} 11. Bxc4 {[%emt 0:00:07]} Qxd4 {[%emt 0:00:18]} 12. Qxd4 {[%emt 0:00:01]} Nxd4 {[%emt 0:00:01]} 13. O-O-O {[%emt 0:00:07]} Nxf3 {[%emt 0:00:10]} 14. Bb5+ {[%emt 0:00:12]} Kf8 {[%emt 0:00:06]} 15. Rg2 {[%emt 0:01:20]} Nxg5 {[%emt 0:00:03]} 16. Rxg5 {[%emt 0:00:10]} Nd5 {[%emt 0:00:28]} 17. Rg3 {[%emt 0:00:36]} Nxc3 {[%emt 0:00:01]} 18. Rxc3 {[%emt 0:00:01]} g6 {[%emt 0:00:18]} 19. Rc7 {[%emt 0:00:16]} Bg5+ {[%emt 0:00:08]} 20. Kb1 {[%emt 0:00:01]} Rd8 {[%emt 0:00:34]} 21. Rg1 {[%emt 0:00:45]} Bf4 {[%emt 0:00:14]} 22. Rxb7 {[%emt 0:00:09]} Bxh2 23. Rh1 {[%emt 0:00:17]} Be5 {[%emt 0:00:18]} 24. Rxa7 {[%emt 0:00:15]} Kg7 {[%emt 0:00:06]} 25. Rc1 {[%emt 0:00:03]} Rd2 {[%emt 0:00:07]} 26. Rc2 {[%emt 0:00:02]} Rd1+ {[%emt 0:00:03]} 27. Ka2 Rdd8 {[%emt 0:00:06]} 28. Rcc7 {[%emt 0:00:05]} Rhf8 {[%emt 0:00:01]} 29. Rcb7 {[%emt 0:00:01]} Rb8 {[%emt 0:00:07]} 30. Bc6 {[%emt 0:00:04]} Rxb7 {[%emt 0:00:01]} 31. Rxb7 {[%emt 0:00:01]} Rd8 {[%emt 0:00:06]} 32. Rb3 Rd2 {time} 0-1

[Event "3rd FIDE WCCC Blitz G10 2019"]
[Site "Minsk"]
[Date "2019.08.18"]
[Round "1.4"]
[White "Goriachkina, Oksana"]
[Black "Zavezion, Nika"]
[Result "1/2-1/2"]
[ECO "D11"]
[WhiteElo "1411"]
[BlackElo "1648"]
[Annotator "NA"]
[PlyCount "188"]
[EventDate "2019.08.18"]
[EventType "swiss"]
[EventCountry "BLR"]
[SourceTitle "playchess.com"]
[Source "ChessBase"]
[SourceQuality "1"]
[TimeControl "300+2"]

1. d4 {[%emt 0:00:00]} d5 {[%emt 0:00:01]} 2. c4 {[%emt 0:00:00]} c6 {[%emt 0:00:01]} 3. e3 {[%emt 0:00:00]} Nf6 {[%emt 0:00:04]} 4. Nf3 {[%emt 0:00:00]} Bg4 {[%emt 0:00:01]} 5. Be2 {[%emt 0:00:02]} Nbd7 {[%emt 0:00:04]} 6. Nc3 {[%emt 0:00:03]} e6 {[%emt 0:00:01]} 7. O-O {[%emt 0:00:02]} Bb4 {[%emt 0:00:03]} 8. h3 {[%emt 0:00:02]} Bxf3 9. Bxf3 {[%emt 0:00:01]} dxc4 {[%emt 0:00:03]} 10. Qa4 {[%emt 0:00:14]} Bxc3 {[%emt 0:00:10]} 11. bxc3 {[%emt 0:00:01]} Nb6 {[%emt 0:00:17]} 12. Qa3 {[%emt 0:00:05]} Nfd5 {[%emt 0:00:20]} 13. Rb1 {[%emt 0:00:08]} h6 {[%emt 0:00:13]} 14. Bd2 {[%emt 0:00:05]} Qc7 {[%emt 0:00:33]} 15. e4 {[%emt 0:00:26]} Nf6 {[%emt 0:00:07]} 16. g3 {[%emt 0:00:20]} Nbd7 {[%emt 0:00:14]} 17. Bf4 {[%emt 0:00:17]} Qc8 {[%emt 0:00:20]} 18. Qb2 {[%emt 0:00:09]} b5 {[%emt 0:00:05]} 19. a4 {[%emt 0:00:12]} a6 {[%emt 0:00:13]} 20. axb5 cxb5 {[%emt 0:00:03]} 21. e5 {[%emt 0:00:14]} Nd5 {[%emt 0:00:06]} 22. Bd2 {[%emt 0:00:13]} O-O {[%emt 0:00:09]} 23. Ra1 {[%emt 0:00:05]} Rb8 {[%emt 0:00:14]} 24. Ra2 {[%emt 0:00:12]} N7b6 {[%emt 0:00:09]} 25. Rfa1 {[%emt 0:00:13]} Na4 {[%emt 0:00:16]} 26. Qc1 {[%emt 0:00:01]} Qc7 {[%emt 0:00:45]} 27. Bd1 {[%emt 0:00:03]} Ndb6 {[%emt 0:00:19]} 28. Kg2 {[%emt 0:00:16]} Qc6+ {[%emt 0:00:00]} 29. Bf3 {[%emt 0:00:02]} Qc7 {[%emt 0:00:01]} 30. Bd1 {[%emt 0:00:01]} Qc6+ {[%emt 0:00:01]} 31. Bf3 {[%emt 0:00:01]} Qd7 {[%emt 0:00:02]} 32. Bd1 {[%emt 0:00:01]} Rfc8 {[%emt 0:00:04]} 33. Bf3 {[%emt 0:00:06]} a5 {[%emt 0:00:20]} 34. Bd1 {[%emt 0:00:09]} Qb7+ {[%emt 0:00:06]} 35. Bf3 {[%emt 0:00:02]} Qa7 {[%emt 0:00:01]} 36. Bd1 {[%emt 0:00:02]} Qb7+ {[%emt 0:00:02]} 37. Bf3 {[%emt 0:00:01]} Qa6 {[%emt 0:00:01]} 38. Bd1 {[%emt 0:00:04]} Kh8 {[%emt 0:00:16]} 39. Kh2 {[%emt 0:00:04]} Qb7 {[%emt 0:00:04]} 40. Kg1 {[%emt 0:00:03]} Qe4 {[%emt 0:00:02]} 41. Qc2 {[%emt 0:00:07]} Qxc2 {[%emt 0:00:10]} 42. Bxc2 {[%emt 0:00:01]} Kg8 {[%emt 0:00:07]} 43. Kg2 {[%emt 0:00:01]} Kh8 {[%emt 0:00:01]} 44. Kg1 {[%emt 0:00:00]} Kg8 {[%emt 0:00:01]} 45. Kg2 {[%emt 0:00:01]} Kf8 {[%emt 0:00:01]} 46. Kg1 {[%emt 0:00:03]} Ke7 {[%emt 0:00:01]} 47. Kf1 {[%emt 0:00:01]} f6 {[%emt 0:00:01]} 48. exf6+ {[%emt 0:00:05]} Kxf6 {[%emt 0:00:01]} 49. Ke2 {[%emt 0:00:02]} g5 {[%emt 0:00:02]} 50. f4 {[%emt 0:00:03]} gxf4 {[%emt 0:00:01]} 51. gxf4 {[%emt 0:00:04]} Rb7 {[%emt 0:00:01]} 52. Rg1 {[%emt 0:00:07]} Rf8 {[%emt 0:00:05]} 53. Kf3 {[%emt 0:00:03]} Rbf7 {[%emt 0:00:03]} 54. Ke2 {[%emt 0:00:02]} Ke7 {[%emt 0:00:02]} 55. Rg4 {[%emt 0:00:07]} Nd5 {[%emt 0:00:02]} 56. Bxa4 bxa4 {[%emt 0:00:02]} 57. Rxa4 {[%emt 0:00:04]} Nxf4+ {[%emt 0:00:01]} 58. Bxf4 Rxf4 {[%emt 0:00:02]} 59. Rxf4 {[%emt 0:00:04]} Rxf4 {[%emt 0:00:01]} 60. Rxc4 {[%emt 0:00:03]} Rh4 {[%emt 0:00:03]} 61. Rc7+ {[%emt 0:00:02]} Kf6 {[%emt 0:00:02]} 62. Ra7 {[%emt 0:00:03]} Rxh3 {[%emt 0:00:03]} 63. c4 {[%emt 0:00:01]} Rh2+ {[%emt 0:00:02]} 64. Ke3 {[%emt 0:00:02]} Rh3+ {[%emt 0:00:02]} 65. Ke4 {[%emt 0:00:02]} Rh4+ {[%emt 0:00:01]} 66. Kf3 {[%emt 0:00:01]} Rxd4 {[%emt 0:00:03]} 67. c5 {[%emt 0:00:03]} Rc4 {[%emt 0:00:02]} 68. Rxa5 h5 {[%emt 0:00:01]} 69. Kg3 {[%emt 0:00:03]} h4+ {[%emt 0:00:02]} 70. Kh3 {[%emt 0:00:01]} e5 {[%emt 0:00:01]} 71. Ra6+ {[%emt 0:00:03]} Kf5 {[%emt 0:00:01]} 72. c6 {[%emt 0:00:04]} Kg5 {[%emt 0:00:04]} 73. Ra5 {[%emt 0:00:03]} Rc3+ {[%emt 0:00:02]} 74. Kh2 {[%emt 0:00:03]} Kf4 {[%emt 0:00:03]} 75. Ra4+ {[%emt 0:00:04]} e4 {[%emt 0:00:01]} 76. c7 Rxc7 {[%emt 0:00:01]} 77. Kh3 {[%emt 0:00:05]} Rh7 {[%emt 0:00:03]} 78. Rb4 {[%emt 0:00:01]} Kf3 {[%emt 0:00:02]} 79. Rb3+ {[%emt 0:00:01]} e3 {[%emt 0:00:01]} 80. Rb8 {[%emt 0:00:16]} e2 {[%emt 0:00:02]} 81. Rf8+ {[%emt 0:00:01]} Ke3 {[%emt 0:00:02]} 82. Re8+ {[%emt 0:00:01]} Kd2 {[%emt 0:00:01]} 83. Rd8+ {[%emt 0:00:01]} Ke1 {[%emt 0:00:01]} 84. Re8 {[%emt 0:00:04]} Rh5 {[%emt 0:00:01]} 85. Re4 {[%emt 0:00:04]} Rh6 {[%emt 0:00:03]} 86. Re7 {[%emt 0:00:02]} Rh5 {[%emt 0:00:02]} 87. Re8 {[%emt 0:00:02]} Ra5 {[%emt 0:00:08]} 88. Kxh4 {[%emt 0:00:54]} Ra4+ {[%emt 0:00:01]} 89. Kg3 {[%emt 0:00:02]} Kd2 {[%emt 0:00:02]} 90. Rd8+ {[%emt 0:00:03]} Ke3 {[%emt 0:00:01]} 91. Re8+ {[%emt 0:00:04]} Re4 {[%emt 0:00:01]} 92. Rxe4+ Kxe4 {[%emt 0:00:01]} 93. Kf2 {[%emt 0:00:02]} Kd3 {[%emt 0:00:02]} 94. Ke1 {[%emt 0:00:01]} Ke3 {[%emt 0:00:01]} 1/2-1/2

[Event "3rd FIDE WCCC Blitz G10 2019"]
[Site "Minsk"]
[Date "2019.08.18"]
[Round "1.5"]
[White "Shukhman, Anna"]
[Black "Lyutsinger, Iren"]
[Result "1-0"]
[ECO "B76"]
[WhiteElo "1806"]
[BlackElo "1160"]
[Annotator "NA"]
[PlyCount "44"]
[EventDate "2019.08.18"]
[EventType "swiss"]
[EventCountry "BLR"]
[SourceTitle "playchess.com"]
[Source "ChessBase"]
[SourceQuality "1"]
[TimeControl "300+2"]

1. e4 {[%emt 0:00:00]} c5 {[%emt 0:00:00]} 2. Nf3 {[%emt 0:00:02]} d6 {[%emt 0:00:01]} 3. d4 {[%emt 0:00:01]} cxd4 {[%emt 0:00:02]} 4. Nxd4 {[%emt 0:00:01]} Nf6 {[%emt 0:00:01]} 5. Nc3 {[%emt 0:00:01]} g6 {[%emt 0:00:01]} 6. Be3 {[%emt 0:00:01]} Bg7 {[%emt 0:00:02]} 7. f3 {[%emt 0:00:01]} O-O {[%emt 0:00:04]} 8. Qd2 {[%emt 0:00:01]} Nc6 {[%emt 0:00:00]} 9. g4 {[%emt 0:00:01]} Nxd4 {[%emt 0:00:13]} 10. Bxd4 {[%emt 0:00:02]} d5 {[%emt 0:00:20]} 11. exd5 {[%emt 0:00:24]} Nxd5 {[%emt 0:00:01]} 12. Bxg7 {[%emt 0:00:04]} Kxg7 {[%emt 0:00:48]} 13. Qxd5 {[%emt 0:00:17]} Qc7 {[%emt 0:00:05]} 14. O-O-O {[%emt 0:00:08]} Be6 {[%emt 0:00:02]} 15. Qd4+ {[%emt 0:00:03]} Kg8 {[%emt 0:00:03]} 16. Be2 {[%emt 0:00:09]} Rfd8 {[%emt 0:00:01]} 17. Qe3 {[%emt 0:00:03]} Kg7 {[%emt 0:00:08]} 18. h4 {[%emt 0:00:04]} Rac8 {[%emt 0:00:11]} 19. h5 {[%emt 0:00:07]} a6 20. hxg6 {[%emt 0:00:07]} Rxd1+ {[%emt 0:02:25]} 21. Bxd1 {[%emt 0:00:04]} Qf4 {[%emt 0:01:11]} 22. Qxf4 {[%emt 0:00:05]} Rc7 1-0

[Event "3rd FIDE WCCC Blitz G10 2019"]
[Site "Minsk"]
[Date "2019.08.18"]
[Round "1.6"]
[White "Karpenkava, Palina"]
[Black "Nurgaliyeva, Zarina"]
[Result "0-1"]
[ECO "A45"]
[WhiteElo "1140"]
[BlackElo "1474"]
[Annotator "NA"]
[PlyCount "62"]
[EventDate "2019.08.18"]
[EventType "swiss"]
[EventCountry "BLR"]
[SourceTitle "playchess.com"]
[Source "ChessBase"]
[SourceQuality "1"]
[TimeControl "300+2"]

1. d4 {[%emt 0:00:00]} Nf6 {[%emt 0:00:00]} 2. Bg5 {[%emt 0:00:00]} d5 {[%emt 0:00:02]} 3. Nd2 {[%emt 0:00:01]} Bf5 {[%emt 0:00:07]} 4. e3 {[%emt 0:00:03]} Nbd7 {[%emt 0:00:02]} 5. Ngf3 {[%emt 0:00:04]} e6 {[%emt 0:00:01]} 6. a3 {[%emt 0:00:02]} Be7 {[%emt 0:00:06]} 7. c4 {[%emt 0:00:06]} c6 {[%emt 0:00:09]} 8. Be2 {[%emt 0:00:04]} O-O {[%emt 0:00:02]} 9. O-O {[%emt 0:00:02]} Ne4 {[%emt 0:00:08]} 10. Bxe7 {[%emt 0:00:04]} Qxe7 {[%emt 0:00:02]} 11. Nxe4 {[%emt 0:00:10]} Bxe4 {[%emt 0:00:14]} 12. Rc1 {[%emt 0:00:07]} Nf6 {[%emt 0:00:03]} 13. Bd3 {[%emt 0:00:13]} Bxd3 {[%emt 0:00:08]} 14. Qxd3 {[%emt 0:00:01]} Rfd8 {[%emt 0:00:03]} 15. Ne5 {[%emt 0:00:18]} Rac8 {[%emt 0:00:28]} 16. c5 {[%emt 0:00:46]} Ne8 {[%emt 0:00:09]} 17. Rc2 {[%emt 0:00:06]} f6 {[%emt 0:00:02]} 18. Nf3 {[%emt 0:00:03]} e5 {[%emt 0:00:03]} 19. Qe2 {[%emt 0:00:27]} Nc7 {[%emt 0:00:10]} 20. Rfc1 {[%emt 0:00:09]} Re8 {[%emt 0:00:02]} 21. Kf1 {[%emt 0:00:06]} Qd7 {[%emt 0:00:19]} 22. h3 {[%emt 0:00:02]} Re7 {[%emt 0:00:11]} 23. Qd2 {[%emt 0:00:07]} Rce8 {[%emt 0:00:03]} 24. Rc3 {[%emt 0:00:27]} e4 {[%emt 0:00:12]} 25. Nh2 {[%emt 0:00:01]} f5 {[%emt 0:00:03]} 26. Kg1 {[%emt 0:00:08]} Ne6 {[%emt 0:00:07]} 27. g3 {[%emt 0:00:05]} Ng5 {[%emt 0:00:01]} 28. Kg2 {[%emt 0:00:04]} f4 {[%emt 0:00:04]} 29. gxf4 {[%emt 0:00:24]} Qxh3+ {[%emt 0:00:01]} 30. Kh1 {[%emt 0:00:01]} Nf3 {[%emt 0:00:02]} 31. Rg1 {[%emt 0:00:16]} Qxh2# {[%emt 0:00:02]} 0-1

[Event "3rd FIDE WCCC Blitz G10 2019"]
[Site "Minsk"]
[Date "2019.08.18"]
[Round "2.1"]
[White "Huynh, Phuc Minh Phuong"]
[Black "Basova, Polina"]
[Result "1-0"]
[ECO "C47"]
[WhiteElo "1254"]
[BlackElo "1610"]
[Annotator "NA"]
[PlyCount "145"]
[EventDate "2019.08.18"]
[EventType "swiss"]
[EventCountry "BLR"]
[SourceTitle "playchess.com"]
[Source "ChessBase"]
[SourceQuality "1"]
[TimeControl "300+2"]

1. e4 {[%emt 0:00:00]} e5 {[%emt 0:00:00]} 2. Nf3 {[%emt 0:00:00]} Nf6 {[%emt 0:00:01]} 3. Nc3 {[%emt 0:00:03]} Nc6 {[%emt 0:00:02]} 4. Bc4 {[%emt 0:00:06]} Nxe4 {[%emt 0:00:04]} 5. Nxe4 {[%emt 0:00:05]} d5 {[%emt 0:00:02]} 6. Nc3 {[%emt 0:00:11]} dxc4 {[%emt 0:00:06]} 7. Qe2 {[%emt 0:00:02]} Nd4 {[%emt 0:00:11]} 8. Qxe5+ {[%emt 0:00:04]} Ne6 {[%emt 0:00:04]} 9. Qe2 {[%emt 0:00:23]} Be7 {[%emt 0:00:22]} 10. Qxc4 {[%emt 0:00:04]} O-O {[%emt 0:00:11]} 11. O-O {[%emt 0:00:02]} Ng5 {[%emt 0:00:30]} 12. Nxg5 {[%emt 0:00:17]} Bxg5 {[%emt 0:00:05]} 13. d3 {[%emt 0:00:06]} Be6 {[%emt 0:00:11]} 14. Bxg5 {[%emt 0:00:04]} Qxg5 {[%emt 0:00:08]} 15. Qxc7 {[%emt 0:00:02]} Bd5 {[%emt 0:00:14]} 16. Qg3 {[%emt 0:00:10]} Qf5 {[%emt 0:00:12]} 17. Rfe1 {[%emt 0:00:22]} Rfe8 {[%emt 0:00:05]} 18. Rad1 {[%emt 0:00:26]} Re6 {[%emt 0:00:24]} 19. Nxd5 {[%emt 0:00:15]} Qxd5 {[%emt 0:00:02]} 20. Rxe6 {[%emt 0:00:01]} Qxe6 {[%emt 0:00:06]} 21. a3 {[%emt 0:00:01]} Qe2 {[%emt 0:00:03]} 22. Rc1 {[%emt 0:00:11]} Qd2 {[%emt 0:00:11]} 23. Qe3 {[%emt 0:00:01]} Qxe3 {[%emt 0:00:09]} 24. fxe3 {[%emt 0:00:01]} Re8 {[%emt 0:00:03]} 25. Kf2 {[%emt 0:00:01]} f5 {[%emt 0:00:02]} 26. c4 {[%emt 0:00:03]} Kf7 {[%emt 0:00:05]} 27. b4 {[%emt 0:00:01]} Kf6 {[%emt 0:00:07]} 28. d4 {[%emt 0:00:04]} Re4 {[%emt 0:00:20]} 29. c5 {[%emt 0:00:27]} f4 {[%emt 0:00:06]} 30. exf4 {[%emt 0:00:13]} Rxd4 {[%emt 0:00:08]} 31. Ke3 {[%emt 0:00:09]} Rd7 {[%emt 0:00:12]} 32. c6 {[%emt 0:00:02]} Re7+ {[%emt 0:00:10]} 33. Kf3 {[%emt 0:00:01]} bxc6 {[%emt 0:00:20]} 34. Rxc6+ {[%emt 0:00:02]} Kf7 {[%emt 0:00:13]} 35. b5 {[%emt 0:00:04]} Rb7 {[%emt 0:00:01]} 36. a4 {[%emt 0:00:00]} Ke7 {[%emt 0:00:03]} 37. Ke4 {[%emt 0:00:05]} Kd7 {[%emt 0:00:06]} 38. g4 {[%emt 0:00:07]} Ke7 {[%emt 0:00:04]} 39. Ke5 {[%emt 0:00:01]} Kd7 {[%emt 0:00:10]} 40. f5 {[%emt 0:00:03]} Ke7 {[%emt 0:00:01]} 41. g5 {[%emt 0:00:01]} Kf7 {[%emt 0:00:03]} 42. h4 {[%emt 0:00:02]} Ke7 {[%emt 0:00:01]} 43. h5 {[%emt 0:00:13]} Kf7 {[%emt 0:00:04]} 44. Kd6 {[%emt 0:00:18]} h6 {[%emt 0:00:21]} 45. gxh6 {[%emt 0:00:09]} gxh6 {[%emt 0:00:03]} 46. Rc7+ {[%emt 0:00:01]} Rxc7 {[%emt 0:00:02]} 47. Kxc7 {[%emt 0:00:01]} Kf6 {[%emt 0:00:01]} 48. Kb7 {[%emt 0:00:00]} Kxf5 {[%emt 0:00:01]} 49. Kxa7 {[%emt 0:00:01]} Kg5 {[%emt 0:00:02]} 50. b6 {[%emt 0:00:01]} Kxh5 {[%emt 0:00:02]} 51. b7 {[%emt 0:00:01]} Kg4 {[%emt 0:00:03]} 52. b8=Q {[%emt 0:00:02]} h5 {[%emt 0:00:01]} 53. Qh2 {[%emt 0:00:03]} h4 {[%emt 0:00:01]} 54. Kb7 {[%emt 0:00:00]} h3 {[%emt 0:00:05]} 55. a5 {[%emt 0:00:01]} Kh4 {[%emt 0:00:01]} 56. a6 {[%emt 0:00:02]} Kg4 {[%emt 0:00:02]} 57. Qxh3+ {[%emt 0:00:02]} Kxh3 {[%emt 0:00:01]} 58. a7 {[%emt 0:00:00]} Kg4 {[%emt 0:00:03]} 59. a8=Q {[%emt 0:00:04]} Kf5 {[%emt 0:00:01]} 60. Kb6 {[%emt 0:00:01]} Ke6 {[%emt 0:00:01]} 61. Kc5 {[%emt 0:00:02]} Kd7 {[%emt 0:00:02]} 62. Qb7+ {[%emt 0:00:01]} Ke6 {[%emt 0:00:01]} 63. Qd5+ {[%emt 0:00:01]} Ke7 {[%emt 0:00:01]} 64. Qd6+ {[%emt 0:00:07]} Kf7 {[%emt 0:00:02]} 65. Qe5 {[%emt 0:00:01]} Kg6 {[%emt 0:00:02]} 66. Qf4 {[%emt 0:00:01]} Kh5 {[%emt 0:00:03]} 67. Qg3 {[%emt 0:00:01]} Kh6 {[%emt 0:00:01]} 68. Qg4 {[%emt 0:00:01]} Kh7 {[%emt 0:00:01]} 69. Qg5 {[%emt 0:00:02]} Kh8 {[%emt 0:00:02]} 70. Kd6 {[%emt 0:00:01]} Kh7 {[%emt 0:00:01]} 71. Ke7 {[%emt 0:00:01]} Kh8 {[%emt 0:00:01]} 72. Kf7 {[%emt 0:00:01]} Kh7 {[%emt 0:00:01]} 73. Qg7# {[%emt 0:00:01]} 1-0

[Event "3rd FIDE WCCC Blitz G10 2019"]
[Site "Minsk"]
[Date "2019.08.18"]
[Round "2.2"]
[White "Tsareva, Darya"]
[Black "Shukhman, Anna"]
[Result "0-1"]
[ECO "B43"]
[WhiteElo "1177"]
[BlackElo "1806"]
[Annotator "NA"]
[PlyCount "102"]
[EventDate "2019.08.18"]
[EventType "swiss"]
[EventCountry "BLR"]
[SourceTitle "playchess.com"]
[Source "ChessBase"]
[SourceQuality "1"]
[TimeControl "300+2"]

1. e4 {[%emt 0:00:00]} c5 {[%emt 0:00:00]} 2. Nf3 {[%emt 0:00:01]} e6 {[%emt 0:00:02]} 3. d4 {[%emt 0:00:01]} cxd4 {[%emt 0:00:00]} 4. Nxd4 {[%emt 0:00:02]} a6 {[%emt 0:00:01]} 5. Nc3 {[%emt 0:00:04]} Qc7 {[%emt 0:00:02]} 6. Be3 {[%emt 0:00:09]} Nf6 {[%emt 0:00:01]} 7. f3 {[%emt 0:00:05]} Bb4 {[%emt 0:00:14]} 8. Qd2 {[%emt 0:00:17]} d5 {[%emt 0:00:17]} 9. exd5 {[%emt 0:00:21]} Nxd5 {[%emt 0:00:05]} 10. Nde2 {[%emt 0:00:06]} O-O {[%emt 0:00:24]} 11. O-O-O {[%emt 0:00:30]} Nc6 {[%emt 0:00:12]} 12. a3 {[%emt 0:00:15]} Ba5 {[%emt 0:00:21]} 13. Kb1 {[%emt 0:00:50]} Rd8 {[%emt 0:00:35]} 14. Nxd5 {[%emt 0:00:41]} Rxd5 {[%emt 0:00:10]} 15. Qc1 {[%emt 0:00:04]} Rxd1 {[%emt 0:00:08]} 16. Qxd1 {[%emt 0:00:01]} e5 {[%emt 0:00:03]} 17. Bd2 {[%emt 0:00:13]} Be6 {[%emt 0:00:32]} 18. Bxa5 {[%emt 0:00:13]} Qxa5 {[%emt 0:00:04]} 19. Nc3 {[%emt 0:00:02]} Rd8 {[%emt 0:00:08]} 20. Qe1 {[%emt 0:00:12]} b5 {[%emt 0:00:23]} 21. Bd3 {[%emt 0:00:45]} b4 {[%emt 0:00:22]} 22. Ne4 Qb6 {[%emt 0:00:28]} 23. a4 {[%emt 0:00:16]} b3 {[%emt 0:00:07]} 24. cxb3 {[%emt 0:00:04]} Rxd3 {[%emt 0:00:03]} 25. Qe2 {[%emt 0:00:04]} Rxb3 {[%emt 0:00:08]} 26. Rd1 {[%emt 0:00:03]} Nd4 {[%emt 0:00:05]} 27. Qd2 {[%emt 0:00:03]} h6 {[%emt 0:00:14]} 28. Nc3 {[%emt 0:00:06]} Rb4 {[%emt 0:00:26]} 29. Ne4 {[%emt 0:00:10]} Rxa4 {[%emt 0:00:04]} 30. Nc3 {[%emt 0:00:02]} Rb4 {[%emt 0:00:01]} 31. h3 {[%emt 0:00:02]} Qa5 {[%emt 0:00:03]} 32. g4 {[%emt 0:00:06]} Nb3 {[%emt 0:00:08]} 33. Qd8+ {[%emt 0:00:02]} Qxd8 {[%emt 0:00:01]} 34. Rxd8+ {[%emt 0:00:01]} Kh7 {[%emt 0:00:00]} 35. h4 {[%emt 0:00:02]} Nd4 {[%emt 0:00:03]} 36. Ra8 {[%emt 0:00:03]} Rb6 {[%emt 0:00:02]} 37. f4 {[%emt 0:00:01]} exf4 {[%emt 0:00:01]} 38. Ne4 {[%emt 0:00:01]} Bxg4 {[%emt 0:00:02]} 39. Nf2 {[%emt 0:00:01]} Bf5+ {[%emt 0:00:02]} 40. Ka1 {[%emt 0:00:01]} Re6 {[%emt 0:00:00]} 41. Ka2 {[%emt 0:00:03]} Re2 {[%emt 0:00:00]} 42. Nd1 {[%emt 0:00:02]} f3 {[%emt 0:00:00]} 43. Rxa6 f2 {[%emt 0:00:00]} 44. Nxf2 {[%emt 0:00:04]} Rxf2 {[%emt 0:00:00]} 45. Ka3 {[%emt 0:00:01]} Rf3+ {[%emt 0:00:00]} 46. Ka4 {[%emt 0:00:01]} g5 {[%emt 0:00:00]} 47. hxg5 hxg5 {[%emt 0:00:00]} 48. b4 {[%emt 0:00:04]} Bd7+ {[%emt 0:00:00]} 49. Ka5 {[%emt 0:00:02]} Ra3+ {[%emt 0:00:00]} 50. Kb6 {[%emt 0:00:01]} Rxa6+ {[%emt 0:00:00]} 51. Kxa6 {[%emt 0:00:01]} g4 {[%emt 0:00:00]} 0-1